[Event "Early-Titled-Tuesday-Blitz-February-06-2024"]
[Site "Chess.com"]
[Date "2024.02.06"]
[Round "8"]
[White "Mourinho_Jose"]
[Black "aranibos"]
[Result "0-1"]
[WhiteElo "2463"]
[BlackElo "2298"]
[TimeControl "180+1"]
[EndTime "9:27:57 PST"]
[Termination "aranibos won on time"]

1. e4 {[%clk 0:03:00.9]} 1... c6 {[%clk 0:02:59]} 2. d4 {[%clk 0:02:58.9]} 2...
d5 {[%clk 0:02:59]} 3. exd5 {[%clk 0:02:57.8]} 3... cxd5 {[%clk 0:02:56.9]} 4.
c4 {[%clk 0:02:58]} 4... e6 {[%clk 0:02:55.4]} 5. Nc3 {[%clk 0:02:58.3]} 5...
Nf6 {[%clk 0:02:54.1]} 6. Nf3 {[%clk 0:02:58.2]} 6... Nc6 {[%clk 0:02:54.1]} 7.
a3 {[%clk 0:02:58.1]} 7... Be7 {[%clk 0:02:49.8]} 8. Qc2 {[%clk 0:02:52.4]} 8...
dxc4 {[%clk 0:02:45.2]} 9. Bxc4 {[%clk 0:02:53.3]} 9... Nxd4 {[%clk 0:02:41.1]}
10. Nxd4 {[%clk 0:02:53.1]} 10... Qxd4 {[%clk 0:02:40.5]} 11. Bb5+ {[%clk
0:02:54]} 11... Bd7 {[%clk 0:02:39.8]} 12. Be3 {[%clk 0:02:54.6]} 12... Qe5
{[%clk 0:02:29.3]} 13. Bxd7+ {[%clk 0:02:29.9]} 13... Nxd7 {[%clk 0:02:27.7]}
14. Rd1 {[%clk 0:02:30.8]} 14... Nb6 {[%clk 0:02:12.4]} 15. O-O {[%clk
0:02:18.5]} 15... O-O {[%clk 0:01:58.2]} 16. Rfe1 {[%clk 0:02:13.2]} 16... Qc7
{[%clk 0:01:56.1]} 17. Qe4 {[%clk 0:02:02.6]} 17... Rac8 {[%clk 0:01:38.6]} 18.
Qg4 {[%clk 0:01:58.3]} 18... Bf6 {[%clk 0:01:34.2]} 19. Nb5 {[%clk 0:01:38.5]}
19... Qc4 {[%clk 0:01:25.8]} 20. Qh5 {[%clk 0:01:02.8]} 20... Rcd8 {[%clk
0:01:04.1]} 21. Nd6 {[%clk 0:00:48.7]} 21... Qc6 {[%clk 0:00:56.3]} 22. Bf4
{[%clk 0:00:20.8]} 22... Nd5 {[%clk 0:00:51.7]} 23. Ne4 {[%clk 0:00:17.6]} 23...
Nxf4 {[%clk 0:00:46.4]} 24. Nxf6+ {[%clk 0:00:17.5]} 24... gxf6 {[%clk
0:00:46.3]} 25. Qg4+ {[%clk 0:00:12]} 25... Ng6 {[%clk 0:00:46]} 26. h4 {[%clk
0:00:12.9]} 26... f5 {[%clk 0:00:40.6]} 27. Qg5 {[%clk 0:00:12.6]} 27... f6
{[%clk 0:00:39.1]} 28. Qh6 {[%clk 0:00:10.8]} 28... Rxd1 {[%clk 0:00:34.1]} 29.
Rxd1 {[%clk 0:00:10.8]} 29... Qc7 {[%clk 0:00:33]} 30. h5 {[%clk 0:00:09.5]}
30... Qf4 {[%clk 0:00:31.4]} 31. Qxf4 {[%clk 0:00:06.2]} 31... Nxf4 {[%clk
0:00:31.3]} 32. Rd7 {[%clk 0:00:04.5]} 32... Rf7 {[%clk 0:00:30.4]} 0-1

[Event "Early-Titled-Tuesday-Blitz-February-06-2024"]
[Site "Chess.com"]
[Date "2024.02.06"]
[Round "8"]
[White "LuisFSiles"]
[Black "Matols"]
[Result "1-0"]
[WhiteElo "2259"]
[BlackElo "2380"]
[TimeControl "180+1"]
[EndTime "9:27:57 PST"]
[Termination "LuisFSiles won on time"]

1. e4 {[%clk 0:03:00.9]} 1... c6 {[%clk 0:03:00.3]} 2. d4 {[%clk 0:03:00.6]}
2... d5 {[%clk 0:03:00.8]} 3. exd5 {[%clk 0:03:01.5]} 3... cxd5 {[%clk
0:03:01.4]} 4. c4 {[%clk 0:03:02.4]} 4... Nf6 {[%clk 0:03:00.7]} 5. Nc3 {[%clk
0:03:03]} 5... Nc6 {[%clk 0:03:01.2]} 6. Bg5 {[%clk 0:03:01.8]} 6... Be6 {[%clk
0:02:48.8]} 7. Nge2 {[%clk 0:02:56.1]} 7... h6 {[%clk 0:02:32.6]} 8. Be3 {[%clk
0:02:42.9]} 8... dxc4 {[%clk 0:02:28.4]} 9. Nf4 {[%clk 0:02:43]} 9... Bd5 {[%clk
0:02:23.3]} 10. Nfxd5 {[%clk 0:02:32.3]} 10... Nxd5 {[%clk 0:02:24.2]} 11. Bxc4
{[%clk 0:02:32.4]} 11... e6 {[%clk 0:02:14.6]} 12. O-O {[%clk 0:02:26]} 12...
Be7 {[%clk 0:02:05.5]} 13. Qg4 {[%clk 0:02:03.9]} 13... Nxe3 {[%clk 0:01:51.7]}
14. fxe3 {[%clk 0:02:02.4]} 14... O-O {[%clk 0:01:51]} 15. Rf3 {[%clk
0:01:59.7]} 15... Rc8 {[%clk 0:01:17.1]} 16. Bb3 {[%clk 0:01:41.9]} 16... Qa5
{[%clk 0:00:40.9]} 17. d5 {[%clk 0:01:29.7]} 17... Ne5 {[%clk 0:00:32.9]} 18.
Qe4 {[%clk 0:01:25.7]} 18... Nxf3+ {[%clk 0:00:32.4]} 19. gxf3 {[%clk
0:01:24.8]} 19... Bf6 {[%clk 0:00:29.2]} 20. dxe6 {[%clk 0:01:22.7]} 20... Bxc3
{[%clk 0:00:23.8]} 21. exf7+ {[%clk 0:01:22]} 21... Kh8 {[%clk 0:00:19.8]} 22.
bxc3 {[%clk 0:01:10.3]} 22... Qxc3 {[%clk 0:00:18.6]} 23. Rd1 {[%clk 0:01:02.3]}
23... Qc6 {[%clk 0:00:14.4]} 24. Qxc6 {[%clk 0:00:54]} 24... Rxc6 {[%clk
0:00:15.3]} 25. Rd7 {[%clk 0:00:53.9]} 25... g5 {[%clk 0:00:09.9]} 26. Rxb7
{[%clk 0:00:53.4]} 26... Ra6 {[%clk 0:00:08.3]} 27. Re7 {[%clk 0:00:52.6]} 27...
Kg7 {[%clk 0:00:08.4]} 28. Kf2 {[%clk 0:00:52]} 28... h5 {[%clk 0:00:06.4]} 29.
Re5 {[%clk 0:00:44.5]} 29... Kf6 {[%clk 0:00:05.6]} 30. f4 {[%clk 0:00:44.9]}
30... gxf4 {[%clk 0:00:05]} 31. exf4 {[%clk 0:00:45.8]} 31... Rd6 {[%clk
0:00:05.1]} 32. Rxh5 {[%clk 0:00:45.1]} 32... Rd2+ {[%clk 0:00:04.8]} 33. Ke3
{[%clk 0:00:44.5]} 33... Rg2 {[%clk 0:00:04.2]} 34. Re5 {[%clk 0:00:43.3]} 34...
Kg7 {[%clk 0:00:03.5]} 35. Rg5+ {[%clk 0:00:41.5]} 35... Rxg5 {[%clk 0:00:02.4]}
36. fxg5 {[%clk 0:00:42.4]} 36... Rd8 {[%clk 0:00:01.2]} 37. h4 {[%clk
0:00:41.1]} 1-0

[Event "Early-Titled-Tuesday-Blitz-February-06-2024"]
[Site "Chess.com"]
[Date "2024.02.06"]
[Round "8"]
[White "ChessBliss09"]
[Black "Dacean99"]
[Result "0-1"]
[WhiteElo "2134"]
[BlackElo "2642"]
[TimeControl "180+1"]
[EndTime "9:27:58 PST"]
[Termination "Dacean99 won by checkmate"]

1. e4 {[%clk 0:03:00.9]} 1... c5 {[%clk 0:02:41.8]} 2. Nf3 {[%clk 0:03:00.4]}
2... d6 {[%clk 0:02:41.9]} 3. d4 {[%clk 0:03:00.8]} 3... cxd4 {[%clk 0:02:41.2]}
4. Nxd4 {[%clk 0:03:01.7]} 4... Nf6 {[%clk 0:02:40.7]} 5. Nc3 {[%clk 0:03:02.3]}
5... a6 {[%clk 0:02:39.4]} 6. f3 {[%clk 0:03:01.9]} 6... b5 {[%clk 0:02:29]} 7.
Be3 {[%clk 0:03:01.6]} 7... Bb7 {[%clk 0:02:28.9]} 8. Qd2 {[%clk 0:03:01.2]}
8... Nbd7 {[%clk 0:02:27.7]} 9. g4 {[%clk 0:02:56.9]} 9... b4 {[%clk 0:02:23.1]}
10. Nce2 {[%clk 0:02:47.1]} 10... Ne5 {[%clk 0:02:17.9]} 11. Ng3 {[%clk
0:02:31]} 11... Qa5 {[%clk 0:01:50.9]} 12. g5 {[%clk 0:02:26.1]} 12... Nfd7
{[%clk 0:01:43.5]} 13. f4 {[%clk 0:02:25.7]} 13... Ng4 {[%clk 0:01:41.1]} 14.
Nb3 {[%clk 0:02:12.1]} 14... Qc7 {[%clk 0:01:37.8]} 15. O-O-O {[%clk 0:02:07]}
15... a5 {[%clk 0:01:35.1]} 16. Be2 {[%clk 0:01:48.3]} 16... Nxe3 {[%clk
0:01:34.4]} 17. Qxe3 {[%clk 0:01:49.1]} 17... g6 {[%clk 0:01:34.8]} 18. f5
{[%clk 0:01:46.8]} 18... Bg7 {[%clk 0:01:34.2]} 19. Kb1 {[%clk 0:01:32.9]} 19...
a4 {[%clk 0:01:33.6]} 20. Nd4 {[%clk 0:01:32.4]} 20... O-O {[%clk 0:01:31]} 21.
Nb5 {[%clk 0:01:28.6]} 21... Qc5 {[%clk 0:01:28.9]} 22. Qxc5 {[%clk 0:01:19.2]}
22... Nxc5 {[%clk 0:01:29.8]} 23. f6 {[%clk 0:01:16.1]} 23... exf6 {[%clk
0:01:28.1]} 24. gxf6 {[%clk 0:01:11.2]} 24... Bxf6 {[%clk 0:01:29]} 25. Nxd6
{[%clk 0:01:09.9]} 25... Bc6 {[%clk 0:01:19.4]} 26. Rhf1 {[%clk 0:01:08.8]}
26... Be5 {[%clk 0:01:15.6]} 27. Nc4 {[%clk 0:01:05.7]} 27... Bxg3 {[%clk
0:01:12.9]} 28. hxg3 {[%clk 0:01:05]} 28... Bxe4 {[%clk 0:01:13.4]} 29. Nd6
{[%clk 0:00:59]} 29... b3 {[%clk 0:01:04.4]} 30. Nxe4 {[%clk 0:00:56.1]} 30...
Nxe4 {[%clk 0:01:02.6]} 31. axb3 {[%clk 0:00:41.4]} 31... Nxg3 {[%clk
0:01:01.6]} 32. Rf2 {[%clk 0:00:33.9]} 32... axb3 {[%clk 0:01:01.5]} 33. cxb3
{[%clk 0:00:33.6]} 33... Rad8 {[%clk 0:01:00.5]} 34. Rxd8 {[%clk 0:00:30.3]}
34... Rxd8 {[%clk 0:01:01.4]} 35. Bc4 {[%clk 0:00:30.5]} 35... Nf5 {[%clk
0:00:58.3]} 36. b4 {[%clk 0:00:29.4]} 36... Rd4 {[%clk 0:00:57.1]} 37. b3 {[%clk
0:00:29]} 37... h5 {[%clk 0:00:54]} 38. b5 {[%clk 0:00:29.2]} 38... Rd6 {[%clk
0:00:54.3]} 39. Rg2 {[%clk 0:00:26.9]} 39... h4 {[%clk 0:00:48.1]} 40. Kc2
{[%clk 0:00:21.3]} 40... Ne3+ {[%clk 0:00:47.7]} 41. Kc3 {[%clk 0:00:21]} 41...
Nxg2 {[%clk 0:00:48.6]} 42. Kb4 {[%clk 0:00:18.6]} 42... h3 {[%clk 0:00:48.3]}
43. Kc5 {[%clk 0:00:19.5]} 43... Rd8 {[%clk 0:00:47.2]} 44. b6 {[%clk
0:00:20.4]} 44... h2 {[%clk 0:00:47.3]} 45. b7 {[%clk 0:00:19.5]} 45... h1=Q
{[%clk 0:00:47.1]} 46. Kb6 {[%clk 0:00:19.9]} 46... Qg1+ {[%clk 0:00:47.1]} 47.
Kc7 {[%clk 0:00:20.8]} 47... Qd4 {[%clk 0:00:46.1]} 48. b8=Q {[%clk 0:00:19.9]}
48... Qd6+ {[%clk 0:00:46.5]} 49. Kb7 {[%clk 0:00:18.9]} 49... Rxb8+ {[%clk
0:00:47.4]} 50. Ka7 {[%clk 0:00:18.8]} 50... Qb6# {[%clk 0:00:48.3]} 0-1

[Event "Early-Titled-Tuesday-Blitz-February-06-2024"]
[Site "Chess.com"]
[Date "2024.02.06"]
[Round "8"]
[White "topce"]
[Black "Predator0608"]
[Result "0-1"]
[WhiteElo "2386"]
[BlackElo "2538"]
[TimeControl "180+1"]
[EndTime "9:28:00 PST"]
[Termination "Predator0608 won by checkmate"]

1. c4 {[%clk 0:03:00.9]} 1... b6 {[%clk 0:02:59.3]} 2. Nc3 {[%clk 0:02:51.9]}
2... Bb7 {[%clk 0:02:59.2]} 3. d4 {[%clk 0:02:51.7]} 3... Nf6 {[%clk 0:02:58.9]}
4. f3 {[%clk 0:02:45.7]} 4... d5 {[%clk 0:02:59.2]} 5. cxd5 {[%clk 0:02:45.1]}
5... Nxd5 {[%clk 0:03:00.1]} 6. e4 {[%clk 0:02:45.3]} 6... Nxc3 {[%clk
0:03:00.7]} 7. bxc3 {[%clk 0:02:46]} 7... e6 {[%clk 0:03:01.1]} 8. Bb5+ {[%clk
0:02:42]} 8... c6 {[%clk 0:02:59.7]} 9. Bd3 {[%clk 0:02:41.8]} 9... Be7 {[%clk
0:02:58.6]} 10. Ne2 {[%clk 0:02:42.2]} 10... O-O {[%clk 0:02:56.4]} 11. O-O
{[%clk 0:02:41.7]} 11... c5 {[%clk 0:02:56.4]} 12. Be3 {[%clk 0:02:40]} 12...
cxd4 {[%clk 0:02:53.7]} 13. cxd4 {[%clk 0:02:38.1]} 13... Nc6 {[%clk 0:02:53.9]}
14. a3 {[%clk 0:02:34.3]} 14... Rc8 {[%clk 0:02:48.7]} 15. Qa4 {[%clk
0:02:15.1]} 15... a6 {[%clk 0:02:36.1]} 16. Rac1 {[%clk 0:01:55.1]} 16... b5
{[%clk 0:02:35.1]} 17. Qb3 {[%clk 0:01:55]} 17... Qa5 {[%clk 0:02:27.5]} 18. Ra1
{[%clk 0:01:46.6]} 18... Rfd8 {[%clk 0:02:02.1]} 19. Rfb1 {[%clk 0:01:43.5]}
19... Qb6 {[%clk 0:01:45]} 20. Kf2 {[%clk 0:01:36.2]} 20... Nxd4 {[%clk
0:01:31.1]} 21. Qb2 {[%clk 0:01:05.7]} 21... Bf6 {[%clk 0:01:24.7]} 22. Rc1
{[%clk 0:00:57.9]} 22... Nxe2 {[%clk 0:01:19.7]} 23. Qxf6 {[%clk 0:00:55.1]}
23... gxf6 {[%clk 0:01:10]} 24. Bxb6 {[%clk 0:00:49.5]} 24... Nxc1 {[%clk
0:00:57.5]} 25. Bxd8 {[%clk 0:00:40.7]} 25... Nxd3+ {[%clk 0:00:55.2]} 26. Ke3
{[%clk 0:00:41]} 26... Rxd8 {[%clk 0:00:54]} 27. Rd1 {[%clk 0:00:41]} 27... Kf8
{[%clk 0:00:45.6]} 28. Rxd3 {[%clk 0:00:40.7]} 28... Rxd3+ {[%clk 0:00:46.5]}
29. Kxd3 {[%clk 0:00:41.3]} 29... Ke7 {[%clk 0:00:47.4]} 30. Kc3 {[%clk
0:00:41.1]} 30... Kd6 {[%clk 0:00:47.8]} 31. Kb4 {[%clk 0:00:42]} 31... f5
{[%clk 0:00:44.1]} 32. exf5 {[%clk 0:00:38.6]} 32... exf5 {[%clk 0:00:45]} 33.
Ka5 {[%clk 0:00:39.2]} 33... Kc5 {[%clk 0:00:44.9]} 34. h3 {[%clk 0:00:32.7]}
34... f4 {[%clk 0:00:44.2]} 35. h4 {[%clk 0:00:32.2]} 35... h5 {[%clk
0:00:44.7]} 36. a4 {[%clk 0:00:31.2]} 36... b4 {[%clk 0:00:44.6]} 37. g4 {[%clk
0:00:30.8]} 37... b3 {[%clk 0:00:42.9]} 38. g5 {[%clk 0:00:22.5]} 38... b2
{[%clk 0:00:43.8]} 39. g6 {[%clk 0:00:22.8]} 39... b1=Q {[%clk 0:00:44.7]} 40.
gxf7 {[%clk 0:00:08]} 40... Qb4# {[%clk 0:00:45.6]} 0-1

[Event "Early-Titled-Tuesday-Blitz-February-06-2024"]
[Site "Chess.com"]
[Date "2024.02.06"]
[Round "8"]
[White "ScofieldMichael01"]
[Black "xamax2000"]
[Result "0-1"]
[WhiteElo "2634"]
[BlackElo "2860"]
[TimeControl "180+1"]
[EndTime "9:28:02 PST"]
[Termination "xamax2000 won on time"]

1. e4 {[%clk 0:02:59.9]} 1... e5 {[%clk 0:03:00.4]} 2. Nc3 {[%clk 0:02:59.3]}
2... Nc6 {[%clk 0:03:00.9]} 3. g3 {[%clk 0:02:59.5]} 3... Nf6 {[%clk 0:03:00.3]}
4. Bg2 {[%clk 0:03:00]} 4... Bc5 {[%clk 0:03:00.9]} 5. Nge2 {[%clk 0:03:00.1]}
5... a5 {[%clk 0:03:01.2]} 6. O-O {[%clk 0:03:00]} 6... d6 {[%clk 0:03:01.7]} 7.
d3 {[%clk 0:03:00.5]} 7... a4 {[%clk 0:03:01.1]} 8. h3 {[%clk 0:03:00.4]} 8...
a3 {[%clk 0:03:00.8]} 9. b3 {[%clk 0:02:55.7]} 9... Be6 {[%clk 0:02:59]} 10. Nd5
{[%clk 0:02:54.1]} 10... h6 {[%clk 0:02:55.4]} 11. Rb1 {[%clk 0:02:46.1]} 11...
Bxd5 {[%clk 0:02:50.7]} 12. exd5 {[%clk 0:02:45.9]} 12... Nb4 {[%clk 0:02:51.6]}
13. Ra1 {[%clk 0:02:28.7]} 13... O-O {[%clk 0:02:46.7]} 14. c4 {[%clk
0:02:23.3]} 14... Re8 {[%clk 0:02:46.2]} 15. Be3 {[%clk 0:01:59]} 15... Nd7
{[%clk 0:01:50.4]} 16. Qd2 {[%clk 0:01:52.4]} 16... Qf6 {[%clk 0:01:41.4]} 17.
Bxc5 {[%clk 0:01:47]} 17... dxc5 {[%clk 0:01:42.3]} 18. Nc3 {[%clk 0:01:47.2]}
18... Qg6 {[%clk 0:01:38.7]} 19. Nb5 {[%clk 0:01:38.4]} 19... Qb6 {[%clk
0:01:36]} 20. Be4 {[%clk 0:01:20.9]} 20... Nf6 {[%clk 0:01:34.2]} 21. Rfe1
{[%clk 0:01:19.3]} 21... c6 {[%clk 0:01:31.2]} 22. Nc3 {[%clk 0:01:00.8]} 22...
Rad8 {[%clk 0:01:29.5]} 23. Na4 {[%clk 0:00:51.4]} 23... Qa7 {[%clk 0:01:27.9]}
24. dxc6 {[%clk 0:00:51.3]} 24... bxc6 {[%clk 0:01:22.1]} 25. Qc1 {[%clk
0:00:36.2]} 25... Nxe4 {[%clk 0:01:18.5]} 26. Rxe4 {[%clk 0:00:37.1]} 26... Rxd3
{[%clk 0:01:17.1]} 27. Qxa3 {[%clk 0:00:30]} 27... Rd4 {[%clk 0:01:10.3]} 28.
Re2 {[%clk 0:00:23.6]} 28... e4 {[%clk 0:01:08.2]} 29. Qb2 {[%clk 0:00:21.6]}
29... Nd3 {[%clk 0:00:55.7]} 30. Qc3 {[%clk 0:00:19.8]} 30... Qd7 {[%clk
0:00:55]} 31. Nb2 {[%clk 0:00:16.9]} 31... Ne5 {[%clk 0:00:48.6]} 32. Kg2 {[%clk
0:00:13.8]} 32... f5 {[%clk 0:00:48.8]} 33. Ree1 {[%clk 0:00:12.2]} 33... f4
{[%clk 0:00:46.6]} 34. Rad1 {[%clk 0:00:10]} 34... Nf3 {[%clk 0:00:37.2]} 0-1

[Event "Early-Titled-Tuesday-Blitz-February-06-2024"]
[Site "Chess.com"]
[Date "2024.02.06"]
[Round "8"]
[White "DavidGavrilescu18"]
[Black "soloderisas"]
[Result "1-0"]
[WhiteElo "2778"]
[BlackElo "2539"]
[TimeControl "180+1"]
[EndTime "9:28:02 PST"]
[Termination "DavidGavrilescu18 won by resignation"]

1. e4 {[%clk 0:02:54.7]} 1... e5 {[%clk 0:03:00.1]} 2. Bc4 {[%clk 0:02:54.3]}
2... Nc6 {[%clk 0:03:00.3]} 3. Nc3 {[%clk 0:02:54.4]} 3... Nf6 {[%clk
0:02:59.6]} 4. d3 {[%clk 0:02:54.3]} 4... Bc5 {[%clk 0:02:58.7]} 5. f4 {[%clk
0:02:54.4]} 5... d6 {[%clk 0:02:58]} 6. Nf3 {[%clk 0:02:54.5]} 6... Bg4 {[%clk
0:02:51.9]} 7. Na4 {[%clk 0:02:54.3]} 7... Nd4 {[%clk 0:02:49]} 8. Nxc5 {[%clk
0:02:53.9]} 8... dxc5 {[%clk 0:02:47.3]} 9. O-O {[%clk 0:02:53.9]} 9... Bxf3
{[%clk 0:02:42.7]} 10. gxf3 {[%clk 0:02:54.8]} 10... exf4 {[%clk 0:02:42.9]} 11.
Bxf4 {[%clk 0:02:53.1]} 11... Nh5 {[%clk 0:02:43.2]} 12. Be3 {[%clk 0:02:52.9]}
12... Qh4 {[%clk 0:02:37.6]} 13. c3 {[%clk 0:02:35.7]} 13... Nc6 {[%clk
0:02:38.1]} 14. f4 {[%clk 0:02:33.8]} 14... f5 {[%clk 0:02:20.1]} 15. exf5
{[%clk 0:02:20]} 15... O-O-O {[%clk 0:02:13.6]} 16. Qf3 {[%clk 0:02:19.8]} 16...
Kb8 {[%clk 0:02:05.1]} 17. Bxc5 {[%clk 0:02:16.3]} 17... g6 {[%clk 0:01:53.4]}
18. f6 {[%clk 0:01:56.1]} 18... g5 {[%clk 0:01:28.6]} 19. Bf2 {[%clk 0:01:52.3]}
19... Qxf4 {[%clk 0:01:24.5]} 20. Qxh5 {[%clk 0:01:52.4]} 20... Ka8 {[%clk
0:01:00.6]} 21. Qh3 {[%clk 0:01:37.8]} 21... g4 {[%clk 0:00:48.2]} 22. Qg3
{[%clk 0:01:31.4]} 22... Qg5 {[%clk 0:00:42.8]} 23. Be3 {[%clk 0:01:26.6]} 23...
Qg6 {[%clk 0:00:42.8]} 24. f7 {[%clk 0:01:17.1]} 24... h5 {[%clk 0:00:43.2]} 25.
Qxc7 {[%clk 0:01:15.1]} 25... h4 {[%clk 0:00:31.5]} 26. Qxd8+ {[%clk 0:00:56.9]}
26... Nxd8 {[%clk 0:00:21.2]} 27. f8=Q {[%clk 0:00:57.8]} 27... Rxf8 {[%clk
0:00:18.1]} 28. Rxf8 {[%clk 0:00:58.7]} 28... b5 {[%clk 0:00:14.9]} 29. Rxd8+
{[%clk 0:00:39.6]} 29... Kb7 {[%clk 0:00:14.6]} 30. Bxb5 {[%clk 0:00:39.6]}
30... g3 {[%clk 0:00:10.4]} 31. Rf1 {[%clk 0:00:28.3]} 31... gxh2+ {[%clk
0:00:09.9]} 32. Kh1 {[%clk 0:00:28.8]} 32... h3 {[%clk 0:00:06.5]} 33. Rf7+
{[%clk 0:00:28]} 33... Qxf7 {[%clk 0:00:05.9]} 34. Rd7+ {[%clk 0:00:28.5]} 34...
Qxd7 {[%clk 0:00:06.1]} 35. Bxd7 {[%clk 0:00:29.4]} 35... a5 {[%clk 0:00:06]}
36. Bxh3 {[%clk 0:00:29.4]} 1-0

[Event "Early-Titled-Tuesday-Blitz-February-06-2024"]
[Site "Chess.com"]
[Date "2024.02.06"]
[Round "8"]
[White "Arteler"]
[Black "jlmanzanares"]
[Result "0-1"]
[WhiteElo "2510"]
[BlackElo "2041"]
[TimeControl "180+1"]
[EndTime "9:28:02 PST"]
[Termination "jlmanzanares won by checkmate"]

1. Nf3 {[%clk 0:02:46.2]} 1... Nf6 {[%clk 0:02:58.4]} 2. c4 {[%clk 0:02:45.9]}
2... e6 {[%clk 0:02:57.2]} 3. Nc3 {[%clk 0:02:45.5]} 3... Be7 {[%clk 0:02:55.7]}
4. d4 {[%clk 0:02:44.3]} 4... d5 {[%clk 0:02:47.8]} 5. cxd5 {[%clk 0:02:44.2]}
5... exd5 {[%clk 0:02:46.9]} 6. Bg5 {[%clk 0:02:38.5]} 6... c6 {[%clk
0:02:37.8]} 7. e3 {[%clk 0:02:38]} 7... O-O {[%clk 0:02:26.5]} 8. Bd3 {[%clk
0:02:37.5]} 8... Nbd7 {[%clk 0:02:23.8]} 9. Qc2 {[%clk 0:02:36.4]} 9... h6
{[%clk 0:02:22.3]} 10. Bh4 {[%clk 0:02:36.4]} 10... Re8 {[%clk 0:02:22]} 11. O-O
{[%clk 0:02:35.7]} 11... Nf8 {[%clk 0:02:21]} 12. h3 {[%clk 0:02:35.2]} 12...
Ne6 {[%clk 0:02:18.8]} 13. Rac1 {[%clk 0:02:19.8]} 13... Kh8 {[%clk 0:02:13.5]}
14. a3 {[%clk 0:02:16.4]} 14... g5 {[%clk 0:02:12.5]} 15. Bg3 {[%clk 0:02:16.7]}
15... Bd6 {[%clk 0:02:04.5]} 16. Ne5 {[%clk 0:02:13]} 16... Rf8 {[%clk
0:02:02.2]} 17. Be2 {[%clk 0:01:52.9]} 17... Bd7 {[%clk 0:01:28.1]} 18. Nxf7+
{[%clk 0:01:32.9]} 18... Rxf7 {[%clk 0:01:26.6]} 19. Bxd6 {[%clk 0:01:32.8]}
19... Qg8 {[%clk 0:01:22.5]} 20. Be5 {[%clk 0:01:26.6]} 20... Raf8 {[%clk
0:01:18.8]} 21. Bh5 {[%clk 0:01:24.5]} 21... Rg7 {[%clk 0:01:14.4]} 22. Be2
{[%clk 0:01:14.5]} 22... Rg6 {[%clk 0:00:54.5]} 23. Na4 {[%clk 0:01:07.9]} 23...
b6 {[%clk 0:00:52.9]} 24. Bd3 {[%clk 0:01:03.8]} 24... Rg7 {[%clk 0:00:48.2]}
25. Bf5 {[%clk 0:01:00.5]} 25... Be8 {[%clk 0:00:44]} 26. Bxe6 {[%clk
0:00:56.9]} 26... Qxe6 {[%clk 0:00:43.5]} 27. Nc3 {[%clk 0:00:48.3]} 27... Bg6
{[%clk 0:00:42.4]} 28. Qa4 {[%clk 0:00:42.1]} 28... Kh7 {[%clk 0:00:38]} 29.
Rfd1 {[%clk 0:00:35.5]} 29... g4 {[%clk 0:00:36.6]} 30. hxg4 {[%clk 0:00:28.6]}
30... Qxg4 {[%clk 0:00:32.1]} 31. Qxc6 {[%clk 0:00:22.5]} 31... Be4 {[%clk
0:00:19.2]} 32. Nxe4 {[%clk 0:00:19.2]} 32... Qxg2# {[%clk 0:00:19]} 0-1

[Event "Early-Titled-Tuesday-Blitz-February-06-2024"]
[Site "Chess.com"]
[Date "2024.02.06"]
[Round "8"]
[White "Shushik"]
[Black "ViralduS"]
[Result "0-1"]
[WhiteElo "2531"]
[BlackElo "2725"]
[TimeControl "180+1"]
[EndTime "9:28:03 PST"]
[Termination "ViralduS won by checkmate"]

1. e4 {[%clk 0:03:00.9]} 1... c5 {[%clk 0:02:44]} 2. Ne2 {[%clk 0:03:00.7]} 2...
Nc6 {[%clk 0:02:43]} 3. g3 {[%clk 0:03:00.4]} 3... g6 {[%clk 0:02:41.7]} 4. Bg2
{[%clk 0:03:00.7]} 4... Bg7 {[%clk 0:02:42.1]} 5. c3 {[%clk 0:03:01.4]} 5... e5
{[%clk 0:02:38.2]} 6. O-O {[%clk 0:03:02]} 6... Nge7 {[%clk 0:02:38.4]} 7. Na3
{[%clk 0:02:59.9]} 7... O-O {[%clk 0:02:36.6]} 8. d3 {[%clk 0:02:59.2]} 8... d5
{[%clk 0:02:27.7]} 9. Qc2 {[%clk 0:02:56]} 9... h6 {[%clk 0:02:25.7]} 10. Be3
{[%clk 0:02:53.8]} 10... d4 {[%clk 0:02:24.2]} 11. Bd2 {[%clk 0:02:52.4]} 11...
Be6 {[%clk 0:02:19.9]} 12. f4 {[%clk 0:02:46.7]} 12... exf4 {[%clk 0:02:20.1]}
13. Nxf4 {[%clk 0:02:42.1]} 13... Qd7 {[%clk 0:02:09.4]} 14. Nxe6 {[%clk
0:02:38.9]} 14... Qxe6 {[%clk 0:02:08.7]} 15. Rae1 {[%clk 0:02:21.1]} 15... Ne5
{[%clk 0:02:06.8]} 16. c4 {[%clk 0:02:15.2]} 16... Ng4 {[%clk 0:01:54.5]} 17.
Bh3 {[%clk 0:02:04.9]} 17... h5 {[%clk 0:01:54.8]} 18. Bg5 {[%clk 0:02:00.5]}
18... Nc6 {[%clk 0:01:54.8]} 19. Nb1 {[%clk 0:01:54.7]} 19... Nce5 {[%clk
0:01:49.3]} 20. Nd2 {[%clk 0:01:49.1]} 20... Qd6 {[%clk 0:01:47.8]} 21. Nf3
{[%clk 0:01:45]} 21... Ne3 {[%clk 0:01:41.1]} 22. Bxe3 {[%clk 0:01:31]} 22...
dxe3 {[%clk 0:01:40.5]} 23. Rxe3 {[%clk 0:01:31.7]} 23... Rad8 {[%clk
0:01:36.7]} 24. Nxe5 {[%clk 0:01:22.2]} 24... Bxe5 {[%clk 0:01:36.6]} 25. Kh1
{[%clk 0:01:22]} 25... Kg7 {[%clk 0:01:36.8]} 26. Ref3 {[%clk 0:01:21.1]} 26...
f6 {[%clk 0:01:37.2]} 27. Qe2 {[%clk 0:01:17.7]} 27... Rh8 {[%clk 0:01:22.7]}
28. b3 {[%clk 0:01:15.6]} 28... h4 {[%clk 0:01:16.9]} 29. g4 {[%clk 0:01:03.9]}
29... g5 {[%clk 0:01:16.7]} 30. Rd1 {[%clk 0:00:59.5]} 30... a6 {[%clk
0:01:08.9]} 31. Rf5 {[%clk 0:00:47.2]} 31... b5 {[%clk 0:01:07.5]} 32. Qe3
{[%clk 0:00:41]} 32... Rhe8 {[%clk 0:00:53.9]} 33. Bf1 {[%clk 0:00:31.7]} 33...
bxc4 {[%clk 0:00:52.8]} 34. bxc4 {[%clk 0:00:31.6]} 34... Rb8 {[%clk 0:00:50.9]}
35. Be2 {[%clk 0:00:29.3]} 35... Rb2 {[%clk 0:00:46.5]} 36. Rdf1 {[%clk
0:00:28.1]} 36... Bf4 {[%clk 0:00:42.5]} 37. R1xf4 {[%clk 0:00:20.5]} 37... gxf4
{[%clk 0:00:42.4]} 38. Rxf4 {[%clk 0:00:20.6]} 38... Rxe2 {[%clk 0:00:39.8]} 39.
Qf3 {[%clk 0:00:17.5]} 39... R8xe4 {[%clk 0:00:27.8]} 40. Rxe4 {[%clk
0:00:12.7]} 40... Qxh2# {[%clk 0:00:27.5]} 0-1